[Event "ESTCC U65 2018"]
[Site "Walbrzych"]
[Date "2018.04.22"]
[Round "9"]
[White "Jorgensen, Brian Jorgen"]
[Black "Karppinen, Martti"]
[Result "1-0"]
[ECO "A04"]
[WhiteElo "2255"]
[BlackElo "1894"]
[Annotator "NA"]
[PlyCount "81"]
[EventDate "2018.??.??"]
[EventCountry "POL"]
[SourceTitle "playchess.com"]
[Source "ChessBase"]
[SourceQuality "1"]
[WhiteTeam "Denmark"]
[BlackTeam "Finland"]
[WhiteTeamCountry "DEN"]
[BlackTeamCountry "FIN"]
[TimeControl "40/5400+30:1800+30"]

1. Nf3 {[%emt 0:00:00]} Nc6 {[%emt 0:00:46]} 2. d4 {[%emt 0:00:00]} d5 {[%emt 0:02:17]} 3. c4 {[%emt 0:00:22]} e6 {[%emt 0:01:26]} 4. Nc3 {[%emt 0:00:51]} Nf6 {[%emt 0:03:31]} 5. Bg5 {[%emt 0:01:21]} Be7 {[%emt 0:01:57]} 6. e3 {[%emt 0:00:39]} O-O {[%emt 0:03:38]} 7. Rc1 {[%emt 0:02:42]} h6 {[%emt 0:07:45]} 8. Bh4 {[%emt 0:01:39]} Nh7 {[%emt 0:02:45] D56: Queen's Gambit Declined: Lasker Defence} (8... a6 9. a3 Ne4 10. Bxe7 Qxe7 11. Qc2 Nxc3 12. Qxc3 Re8 13. Be2 Bd7 14. O-O Rac8 15. cxd5 exd5 16. Qb3 {0-1 (35) Szuhanek,R (2515)-Savic,M (2491) Kragujevac 2016}) 9. Bxe7 {[%emt 0:02:28]} Nxe7 {[%emt 0:00:44]} 10. Bd3 {[%emt 0:00:26]} Nc6 $146 {[%emt 0:05:20]} ({Find the theoretical novelty and annotate with similar games:} 10... Nf6 11. O-O c6 12. b4 dxc4 13. Bxc4 Ned5 14. Qb3 Nxc3 15. Rxc3 Ne4 16. Rc2 {1-0 (71) Hein,E (1966)-Hardt,H (1823) Dortmund 2005}) 11. O-O {[%emt 0:08:50]} Nb4 {[%emt 0:03:53]} 12. Bb1 {[%emt 0:05:37]} dxc4 {[%emt 0:03:27]} 13. Ne5 {[%emt 0:01:15]} b6 {[%emt 0:09:52]} 14. Nxc4 {[%emt 0:04:40]} Ba6 {[%emt 0:03:38]} 15. b3 {[%emt 0:02:32]} Ng5 {[%emt 0:02:09]} 16. f4 {[%emt 0:12:39]} Nh7 {[%emt 0:02:50]} 17. Qf3 {[%emt 0:00:14]} Nf6 {[%emt 0:02:01]} 18. Rfd1 {[%emt 0:00:26]} Rb8 {[%emt 0:02:52]} 19. e4 {[%emt 0:04:15]} Bb7 $18 {[%emt 0:03:07]} 20. a3 {[%emt 0:01:57]} Nc6 {[%emt 0:02:21]} 21. Qd3 {[%emt 0:02:21]} Nh5 {[%emt 0:06:49]} 22. g3 {[%emt 0:08:38]} Qe7 {[%emt 0:04:24]} 23. d5 {[%emt 0:06:32]} Qc5+ {[%emt 0:06:43]} 24. Kg2 {[%emt 0:08:46]} Na5 {[%emt 0:06:16]} 25. Na4 {[%emt 0:07:06]} Qe7 {[%emt 0:03:41]} 26. Nxa5 {[%emt 0:02:53]} bxa5 {[%emt 0:00:07]} 27. Nc5 {[%emt 0:00:31]} exd5 {[%emt 0:03:55]} 28. Nxb7 {[%emt 0:01:42]} Rxb7 {[%emt 0:00:06]} 29. Qxd5 {[%emt 0:00:12]} Rfb8 {[%emt 0:02:54]} 30. Qxh5 {[%emt 0:00:09]} Rxb3 {[%emt 0:00:20]} 31. Bc2 {[%emt 0:02:33]} Rb2 {[%emt 0:00:34]} 32. Qf3 {[%emt 0:00:30]} R8b3 {[%emt 0:00:42]} 33. Rd3 {[%emt 0:00:24]} a4 {[%emt 0:01:49]} 34. Kh3 {[%emt 0:03:44]} Qc5 {[%emt 0:01:55]} 35. Bxb3 {[%emt 0:01:15]} Qxc1 {[%emt 0:00:11]} 36. Rd8+ {[%emt 0:03:16]} Kh7 {[%emt 0:00:08]} 37. Bxf7 {[%emt 0:00:06]} Qg1 {[%emt 0:01:05]} 38. Bg6+ {[%emt 0:01:08]} Kxg6 {[%emt 0:00:07]} 39. Qg4+ {[%emt 0:00:06]} Kf6 {[%emt 0:01:01]} 40. Qf5+ {[%emt 0:00:00]} Ke7 {[%emt 0:00:13]} 41. Rd7+ {[%emt 0:00:30]} 1-0

[Event "ESTCC U65 2018"]
[Site "Walbrzych"]
[Date "2018.04.22"]
[Round "9"]
[White "Hurme, Harri"]
[Black "Lehtosaari, Kalevi"]
[Result "1-0"]
[ECO "D10"]
[WhiteElo "2229"]
[BlackElo "1964"]
[Annotator "NA"]
[PlyCount "124"]
[EventDate "2018.??.??"]
[EventCountry "POL"]
[SourceTitle "playchess.com"]
[Source "ChessBase"]
[SourceQuality "1"]
[WhiteTeam "Finland"]
[BlackTeam "Finland"]
[WhiteTeamCountry "FIN"]
[BlackTeamCountry "FIN"]
[TimeControl "40/5400+30:1800+30"]

1. d4 d5 {[%emt 0:00:22]} 2. c4 {[%emt 0:00:00]} c6 {[%emt 0:00:07]} 3. cxd5 {[%emt 0:00:00]} cxd5 {[%emt 0:00:09]} 4. Nc3 {[%emt 0:00:00]} Nc6 {[%emt 0:00:26]} 5. Bf4 {[%emt 0:00:04]} e6 {[%emt 0:03:18]} 6. e3 {[%emt 0:00:15]} Bb4 {[%emt 0:01:16]} 7. Bd3 {[%emt 0:02:48]} Nf6 {[%emt 0:02:23]} 8. Nf3 {[%emt 0:03:13]} O-O {[%emt 0:02:54]} 9. O-O {[%emt 0:01:11]} Nh5 {[%emt 0:03:12]} 10. Bg5 {[%emt 0:02:55]} Be7 {[%emt 0:01:41]} 11. Bxe7 {[%emt 0:00:37]} Qxe7 {[%emt 0:00:08]} 12. Rc1 {[%emt 0:01:08]} Nf6 {[%emt 0:01:29] D13: Slav Defence: Exchange variation without ...Bf5} 13. Ne5 {[%emt 0:02:07]} (13. a3 e5 14. dxe5 Nxe5 15. Be2 Rd8 16. Qd4 Nc6 17. Qh4 Be6 18. Rfd1 Rac8 19. Nb5 a6 20. Nbd4 Nxd4 21. Qxd4 Rxc1 22. Rxc1 {½-½ (47) Montalvo,A (2255)-Leong,I (2275) Elista 1998}) 13... Bd7 {[%emt 0:06:00]} 14. f4 {[%emt 0:01:55]} g6 $146 {[%emt 0:00:38]} ({Predecessor:} 14... Nxe5 15. fxe5 Ne8 16. Rf3 f5 17. exf6 Rxf6 18. Rg3 g6 19. Qe2 Ng7 20. e4 {1-0 (30) Picasso Gallego,N (1929)-Pinheiro,R (1743) Recife 2014}) 15. g4 {[%emt 0:01:29]} Ne8 {[%emt 0:05:45]} 16. Rf2 {[%emt 0:05:42]} Nxe5 {[%emt 0:04:11]} 17. dxe5 {[%emt 0:02:22]} f6 {[%emt 0:00:55]} 18. exf6 {[%emt 0:02:07]} Nxf6 {[%emt 0:00:40]} 19. g5 {[%emt 0:02:40]} Nh5 {[%emt 0:01:54]} 20. Be2 {[%emt 0:10:02]} Ng7 {[%emt 0:03:50]} 21. Bg4 {[%emt 0:01:04]} Bc6 {[%emt 0:02:01]} 22. Qd4 {[%emt 0:03:34]} a6 {[%emt 0:01:53]} 23. e4 {[%emt 0:04:09]} Rad8 {[%emt 0:04:24]} 24. e5 {[%emt 0:01:41]} Nf5 {[%emt 0:03:09]} 25. Bxf5 {[%emt 0:00:19]} Rxf5 {[%emt 0:00:16]} 26. Ne2 {[%emt 0:02:52]} Rff8 {[%emt 0:08:20]} 27. Qe3 {[%emt 0:03:01]} Rc8 {[%emt 0:06:56]} 28. Nd4 {[%emt 0:00:34]} Bd7 {[%emt 0:00:27]} 29. Rfc2 {[%emt 0:04:47]} Rxc2 {[%emt 0:04:20]} 30. Rxc2 {[%emt 0:00:10]} Rc8 {[%emt 0:00:48]} 31. Kf2 {[%emt 0:02:05]} Qb4 {[%emt 0:04:36]} 32. Rxc8+ {[%emt 0:02:49]} Bxc8 {[%emt 0:00:48]} 33. Qc3 {[%emt 0:00:25]} Qf8 {[%emt 0:06:30]} 34. Ke3 {[%emt 0:01:03]} Qd8 {[%emt 0:02:08]} 35. Qc5 {[%emt 0:01:54]} Kf7 {[%emt 0:02:16]} 36. a4 {[%emt 0:01:36]} Ke8 {[%emt 0:11:33]} 37. a5 {[%emt 0:00:49]} Bd7 {[%emt 0:00:26]} 38. b4 {[%emt 0:01:58]} h6 {[%emt 0:00:30]} 39. h4 {[%emt 0:00:31]} hxg5 {[%emt 0:00:01]} 40. fxg5 {[%emt 0:00:00]} Kf7 {[%emt 0:00:37]} 41. Nf3 {[%emt 0:06:30]} Bc6 {[%emt 0:05:32]} 42. Qd6 {[%emt 0:02:24]} Qc8 {[%emt 0:00:49]} 43. Kd4 {[%emt 0:03:46]} Bd7 {[%emt 0:00:47]} 44. Qc5 {[%emt 0:00:19]} Bc6 {[%emt 0:01:02]} 45. Qc1 {[%emt 0:01:18]} Ke7 {[%emt 0:02:02]} 46. Nh2 {[%emt 0:01:49]} Kd8 {[%emt 0:05:22]} 47. Ng4 {[%emt 0:03:10]} Kc7 {[%emt 0:00:35]} 48. Nf6 {[%emt 0:01:30]} Kb8 {[%emt 0:01:15]} 49. h5 {[%emt 0:01:45]} gxh5 {[%emt 0:01:01]} 50. g6 {[%emt 0:00:16]} Qf8 {[%emt 0:01:01]} 51. Qd2 {[%emt 0:04:39]} h4 {[%emt 0:02:00]} 52. Nh5 {[%emt 0:03:45]} Qf5 $11 {[%emt 0:06:04]} (52... Qf1 $5 53. g7 $8 Qg1+ 54. Qe3 Qd1+ 55. Kc3 {[#]} d4+ $1 {[%mdl 512]} 56. Qxd4 Qa1+ 57. Kd3 Bb5+ 58. Ke4 Bc6+ 59. Kd3 Qd1+ 60. Kc3 Qa1+ 61. Kd3 $11) 53. g7 {[%emt 0:01:23]} Qg4+ {[%emt 0:01:01]} 54. Qf4 {[%emt 0:01:55]} Qg1+ {[%emt 0:00:09]} 55. Kc3 {[%emt 0:01:52]} Qa1+ {[%emt 0:00:37]} 56. Kd2 {[%emt 0:00:38]} Qb2+ {[%emt 0:00:49]} 57. Ke1 {[%emt 0:00:51]} Qb1+ {[%emt 0:04:37]} 58. Kf2 {[%emt 0:00:44]} Qc2+ {[%emt 0:00:11]} 59. Kg1 {[%emt 0:00:18]} Qd1+ {[%emt 0:00:12]} 60. Kh2 {[%emt 0:00:26]} Qe2+ {[%emt 0:09:09]} 61. Kh3 {[%emt 0:00:39]} Qd3+ {[%emt 0:02:47]} 62. Kxh4 {[%emt 0:00:30]} Be8 1-0

[Event "ESTCC U65 2018"]
[Site "Walbrzych"]
[Date "2018.04.22"]
[Round "9"]
[White "Ackermann, Hans Werner"]
[Black "Marks, Ian A"]
[Result "1/2-1/2"]
[ECO "A05"]
[WhiteElo "2211"]
[BlackElo "1895"]
[Annotator "NA"]
[PlyCount "117"]
[EventDate "2018.??.??"]
[EventCountry "POL"]
[SourceTitle "playchess.com"]
[Source "ChessBase"]
[SourceQuality "1"]
[WhiteTeam "Germany"]
[BlackTeam "Scotland"]
[WhiteTeamCountry "GER"]
[BlackTeamCountry "SCO"]
[TimeControl "40/5400+30:1800+30"]

1. Nf3 {[%emt 0:00:00]} Nf6 {[%emt 0:00:12]} 2. c4 {[%emt 0:01:05]} c5 {[%emt 0:00:28]} 3. b3 {[%emt 0:00:33]} b6 {[%emt 0:01:36]} 4. Bb2 {[%emt 0:00:38]} Bb7 {[%emt 0:00:24]} 5. e3 {[%emt 0:00:03]} e6 {[%emt 0:00:23]} 6. Be2 {[%emt 0:02:02]} Be7 {[%emt 0:00:45]} 7. O-O {[%emt 0:00:39]} O-O {[%emt 0:00:07]} 8. d4 {[%emt 0:00:03]} cxd4 {[%emt 0:00:56]} 9. Nxd4 {[%emt 0:00:44]} d6 {[%emt 0:05:37]} 10. Bf3 {[%emt 0:04:11]} Qd7 {[%emt 0:09:07]} 11. Bxb7 Qxb7 {[%emt 0:00:07]} 12. Nc3 {[%emt 0:02:56]} a6 {[%emt 0:02:33]} 13. Qf3 {[%emt 0:01:10] A30: Symmetrical English: Double Fianchetto and Hedgehog} Qxf3 {[%emt 0:00:17]} 14. gxf3 {[%emt 0:01:09]} Rc8 {[%emt 0:06:30]} 15. Rfd1 {[%emt 0:08:36]} Nc6 {[%emt 0:03:20]} (15... Nbd7 16. f4 g6 17. Kg2 Rab8 18. Rac1 Nc5 19. Rc2 Rb7 20. Kf3 Ncd7 {½-½ (20) Gareyev,T (2590)-Sargissian,G (2660) Las Vegas 2009}) 16. Nde2 $146 {[%emt 0:12:05]} ({Find the theoretical novelty and annotate with similar games:} 16. Nxc6 Rxc6 17. Kf1 Rb8 18. Rac1 Nd7 19. Ke2 f5 20. Rd2 Kf7 {½-½ (50) Glienke,M (2325)-Tregubov,P (2520) Berlin 1996}) 16... Ne5 {[%emt 0:07:13]} 17. Kg2 {[%emt 0:01:19]} Ned7 {[%emt 0:09:06]} 18. Rd2 {[%emt 0:07:36]} Rab8 {[%emt 0:02:22]} 19. Nd4 {[%emt 0:00:52]} Kf8 {[%emt 0:03:50]} 20. Rc1 {[%emt 0:07:51]} Ke8 {[%emt 0:02:14]} 21. f4 {[%emt 0:05:01]} g6 {[%emt 0:01:08]} 22. f3 {[%emt 0:03:50]} Nc5 {[%emt 0:05:04]} 23. e4 {[%emt 0:10:29]} Nh5 {[%emt 0:03:00]} 24. Nde2 {[%emt 0:00:18]} b5 {[%emt 0:08:49]} 25. Nb1 {[%emt 0:07:25]} b4 {[%emt 0:02:52]} 26. Bd4 {[%emt 0:01:48]} a5 {[%emt 0:03:09]} 27. Rcd1 {[%emt 0:07:04]} a4 {[%emt 0:03:54]} 28. Bxc5 {[%emt 0:04:26]} Rxc5 {[%emt 0:06:32]} 29. Kf2 {[%emt 0:00:47]} axb3 {[%emt 0:01:09]} 30. axb3 {[%emt 0:00:08]} Ra8 {[%emt 0:03:09]} 31. Rc2 {[%emt 0:01:45]} Ra1 {[%emt 0:01:13]} 32. Rf1 {[%emt 0:01:52]} d5 {[%emt 0:02:06]} 33. Nd2 {[%emt 0:01:37]} Rxf1+ {[%emt 0:00:11]} 34. Kxf1 {[%emt 0:00:08]} g5 {[%emt 0:02:20]} 35. Ra2 {[%emt 0:00:15]} f5 {[%emt 0:01:57]} 36. exf5 {[%emt 0:00:55]} exf5 {[%emt 0:00:22]} 37. Nd4 {[%emt 0:00:11]} Nxf4 {[%emt 0:00:55]} 38. Ra8+ {[%emt 0:01:02]} Kf7 {[%emt 0:00:30]} 39. Ra7 {[%emt 0:00:08]} Ng6 {[%emt 0:01:42]} 40. Nxf5 {[%emt 0:00:00]} Ke6 {[%emt 0:01:33]} 41. Ne3 {[%emt 0:02:28]} dxc4 {[%emt 0:01:12]} 42. Ndxc4 {[%emt 0:00:20]} Ne5 {[%emt 0:01:09]} 43. Ke2 {[%emt 0:04:13]} Nxc4 {[%emt 0:00:46]} 44. Nxc4 {[%emt 0:00:06]} h5 {[%emt 0:01:52]} 45. h3 {[%emt 0:04:48]} Bf6 {[%emt 0:02:57]} 46. Ke3 {[%emt 0:00:48]} Rf5 {[%emt 0:01:25]} 47. Nd2 {[%emt 0:01:34]} Re5+ {[%emt 0:01:57]} 48. Ne4 {[%emt 0:00:16]} Be7 $11 {[%emt 0:01:19]} 49. Ra6+ {[%emt 0:03:59]} Kd7 {[%emt 0:01:43]} 50. Kd3 {[%emt 0:03:33]} Rf5 {[%emt 0:00:53]} 51. Ke2 {[%emt 0:01:47]} Rf4 {[%emt 0:00:55]} 52. Rg6 {[%emt 0:00:42]} Rh4 {[%emt 0:02:10]} 53. Nxg5 {[%emt 0:00:41]} Bxg5 {[%emt 0:00:09]} 54. Rxg5 {[%emt 0:00:02]} Rxh3 {[%emt 0:00:25]} 55. Rb5 {[%emt 0:00:03]} Rh4 {[%emt 0:00:22]} 56. Ke3 {[%emt 0:00:27]} Kc6 {[%emt 0:00:34]} 57. Rf5 {[%emt 0:00:10]} Rh1 {[%emt 0:00:34]} 58. Kd4 {[%emt 0:00:33]} Rc1 {[%emt 0:00:59]} 59. Rxh5 {Kd5+} 1/2-1/2

[Event "ESTCC U65 2018"]
[Site "Walbrzych"]
[Date "2018.04.22"]
[Round "9"]
[White "Hedin, Gunnar"]
[Black "Grahn, Lars"]
[Result "1-0"]
[ECO "A85"]
[WhiteElo "2174"]
[BlackElo "1949"]
[Annotator "NA"]
[PlyCount "35"]
[EventDate "2018.??.??"]
[EventCountry "POL"]
[SourceTitle "playchess.com"]
[Source "ChessBase"]
[SourceQuality "1"]
[WhiteTeam "Sweden"]
[BlackTeam "Sweden"]
[WhiteTeamCountry "SWE"]
[BlackTeamCountry "SWE"]
[TimeControl "40/5400+30:1800+30"]

1. d4 {[%emt 0:00:00]} f5 {[%emt 0:00:08]} 2. c4 {[%emt 0:00:42]} Nf6 {[%emt 0:00:06]} 3. Nc3 {[%emt 0:00:19]} g6 {[%emt 0:00:14]} 4. h4 {[%emt 0:00:51]} d6 {[%emt 0:01:14]} 5. h5 {[%emt 0:00:30]} Nxh5 {[%emt 0:00:37]} 6. e4 {[%emt 0:00:22]} fxe4 {[%emt 0:01:54]} 7. g4 {[%emt 0:01:10]} Nf6 {[%emt 0:04:57]} 8. g5 {[%emt 0:01:23]} Bg4 {[%emt 0:05:58]} 9. Qb3 {[%emt 0:07:32]} Nfd7 {[%emt 0:05:59]} 10. Qxb7 {[%emt 0:06:13]} Nb6 {[%emt 0:04:12]} 11. c5 {[%emt 0:09:31]} dxc5 {[%emt 0:10:01]} 12. dxc5 {[%emt 0:00:47]} Bg7 {[%emt 0:05:39]} 13. Be3 {[%emt 0:00:26]} Bxc3+ {[%emt 0:10:59]} 14. bxc3 {[%emt 0:00:26]} Qd5 {[%emt 0:00:45]} 15. Qxc7 {[%emt 0:06:46]} Nc4 {[%emt 0:06:56]} 16. Bd4 {[%emt 0:09:16]} O-O $18 {[%emt 0:08:05]} (16... Na3 $16 17. Rc1 e3) 17. Bxc4 {[%emt 0:04:45]} Qxc4 {[%emt 0:00:13]} 18. Qe5 1-0

[Event "ESTCC U65 2018"]
[Site "Walbrzych"]
[Date "2018.04.22"]
[Round "9"]
[White "Hammar, Bengt"]
[Black "Lundgren, Ulf"]
[Result "1-0"]
[ECO "C65"]
[WhiteElo "2133"]
[BlackElo "1989"]
[Annotator "NA"]
[PlyCount "48"]
[EventDate "2018.??.??"]
[EventCountry "POL"]
[SourceTitle "playchess.com"]
[Source "ChessBase"]
[SourceQuality "1"]
[WhiteTeam "Sweden"]
[BlackTeam "Sweden"]
[WhiteTeamCountry "SWE"]
[BlackTeamCountry "SWE"]
[TimeControl "40/5400+30:1800+30"]

1. e4 {[%emt 0:00:01]} e5 {[%emt 0:00:13]} 2. Nf3 {[%emt 0:00:19]} Nc6 {[%emt 0:00:11]} 3. Bb5 {[%emt 0:00:31]} Nf6 {[%emt 0:00:09]} 4. d3 {[%emt 0:01:48]} d6 {[%emt 0:01:05]} 5. c3 {[%emt 0:01:08]} Be7 {[%emt 0:00:31]} 6. O-O {[%emt 0:00:35]} O-O {[%emt 0:00:06]} 7. Re1 {[%emt 0:01:40]} Bg4 {[%emt 0:01:44]} 8. h3 {[%emt 0:02:05]} Bh5 {[%emt 0:02:29]} 9. Nbd2 {[%emt 0:02:47]} Nd7 {[%emt 0:02:47]} 10. Ba4 {[%emt 0:04:28]} Rb8 {[%emt 0:03:53]} 11. Nf1 {[%emt 0:04:42]} b5 {[%emt 0:06:04]} 12. Bc2 {[%emt 0:00:56]} Bxf3 {[%emt 0:03:00]} 13. Qxf3 {[%emt 0:00:11]} Bf6 {[%emt 0:00:16]} 14. Ne3 {[%emt 0:01:49]} g6 {[%emt 0:05:35]} 15. b4 {[%emt 0:02:51]} Bg7 {[%emt 0:06:56]} 16. a4 {[%emt 0:04:02]} a6 {[%emt 0:03:27]} 17. g3 {[%emt 0:08:28]} Ne7 {[%emt 0:03:15]} 18. axb5 {[%emt 0:01:19]} axb5 {[%emt 0:00:14]} 19. h4 {[%emt 0:02:17]} c6 {[%emt 0:07:54]} 20. h5 {[%emt 0:02:53]} f5 {[%emt 0:06:34]} 21. hxg6 {[%emt 0:01:06]} hxg6 {[%emt 0:00:12]} 22. Bb3+ {[%emt 0:00:28]} Rf7 {[%emt 0:12:28]} 23. Bxf7+ {[%emt 0:00:51]} Kxf7 {[%emt 0:00:06]} 24. exf5 {[%emt 0:00:05]} Kg8 1-0

[Event "ESTCC U65 2018"]
[Site "Walbrzych"]
[Date "2018.04.22"]
[Round "9"]
[White "Giulian, Philip M"]
[Black "Buchal, Stephan"]
[Result "0-1"]
[ECO "E63"]
[WhiteElo "2124"]
[BlackElo "2310"]
[Annotator "NA"]
[PlyCount "50"]
[EventDate "2018.??.??"]
[EventCountry "POL"]
[SourceTitle "playchess.com"]
[Source "ChessBase"]
[SourceQuality "1"]
[WhiteTeam "Scotland"]
[BlackTeam "Germany"]
[WhiteTeamCountry "SCO"]
[BlackTeamCountry "GER"]
[TimeControl "40/5400+30:1800+30"]

1. Nf3 {[%emt 0:00:00]} g6 {[%emt 0:00:16]} 2. g3 {[%emt 0:00:00]} Bg7 {[%emt 0:00:22]} 3. d4 {[%emt 0:00:00]} Nf6 {[%emt 0:02:45]} 4. c4 {[%emt 0:00:08]} O-O {[%emt 0:00:17]} 5. Bg2 {[%emt 0:00:08]} d6 {[%emt 0:00:28]} 6. O-O {[%emt 0:00:13]} Nc6 {[%emt 0:00:47]} 7. Nc3 {[%emt 0:01:58]} a6 {[%emt 0:03:27]} 8. d5 {[%emt 0:00:46]} Na5 {[%emt 0:00:11]} 9. b3 {[%emt 0:00:07]} Rb8 {[%emt 0:03:12]} 10. Bd2 {[%emt 0:01:23]} c5 {[%emt 0:02:38]} 11. dxc6 {[%emt 0:00:18]} Nxc6 {[%emt 0:00:30]} 12. Qc1 {[%emt 0:04:24]} Re8 {[%emt 0:04:05]} 13. Rd1 {[%emt 0:08:36]} Bd7 {[%emt 0:03:10]} 14. a4 {[%emt 0:04:54]} Qb6 {[%emt 0:14:28]} 15. Ra3 {[%emt 0:14:44]} Rec8 $11 {[%emt 0:05:39]} 16. e4 {[%emt 0:23:07]} Qc5 {[%emt 0:15:14]} 17. Nd5 {[%emt 0:04:11]} Nxd5 {[%emt 0:10:11]} 18. exd5 {[%emt 0:00:06]} Nd4 {[%emt 0:02:42]} 19. Nxd4 {[%emt 0:06:59]} Bxd4 {[%emt 0:00:05]} 20. Be3 {[%emt 0:00:05]} Bxe3 {[%emt 0:00:57]} 21. fxe3 {[%emt 0:00:07]} b5 {[%emt 0:01:21]} 22. axb5 {[%emt 0:00:06]} axb5 {[%emt 0:00:11]} 23. Bf1 {[%emt 0:05:48]} Bf5 {[%emt 0:11:19]} 24. Ra2 {[%emt 0:07:37]} bxc4 {[%emt 0:01:24]} 25. bxc4 {[%emt 0:00:50]} Rb1 {[%emt 0:00:20]} 0-1

[Event "ESTCC U65 2018"]
[Site "Walbrzych"]
[Date "2018.04.22"]
[Round "9"]
[White "White, Alastair F"]
[Black "Kierzek, Matthias"]
[Result "1/2-1/2"]
[ECO "B10"]
[WhiteElo "2069"]
[BlackElo "2272"]
[Annotator "NA"]
[PlyCount "27"]
[EventDate "2018.??.??"]
[EventCountry "POL"]
[SourceTitle "playchess.com"]
[Source "ChessBase"]
[SourceQuality "1"]
[WhiteTeam "Scotland"]
[BlackTeam "Germany"]
[WhiteTeamCountry "SCO"]
[BlackTeamCountry "GER"]
[TimeControl "40/5400+30:1800+30"]

1. e4 {[%emt 0:00:00]} c6 {[%emt 0:00:05]} 2. Nc3 {[%emt 0:00:00]} d5 {[%emt 0:00:08]} 3. Nf3 {[%emt 0:00:06]} Nf6 {[%emt 0:00:10]} 4. e5 {[%emt 0:01:07]} Ne4 {[%emt 0:00:05]} 5. h3 {[%emt 0:00:48]} Bf5 {[%emt 0:02:44]} 6. Ne2 {[%emt 0:00:43]} e6 {[%emt 0:03:14]} 7. d3 {[%emt 0:00:49]} Nc5 {[%emt 0:01:00]} 8. g4 {[%emt 0:00:34]} Bg6 {[%emt 0:01:15]} 9. Nf4 {[%emt 0:00:27]} Be7 {[%emt 0:05:54]} 10. h4 {[%emt 0:03:42]} h6 {[%emt 0:02:02]} 11. Nxg6 {[%emt 0:00:11]} fxg6 {[%emt 0:00:05]} 12. g5 {[%emt 0:01:07]} Nbd7 {[%emt 0:03:23]} 13. Bh3 {[%emt 0:06:27]} Nf8 {[%emt 0:05:24]} 14. Qe2 {[%emt 0:07:23]} 1/2-1/2

[Event "ESTCC U65 2018"]
[Site "Walbrzych"]
[Date "2018.04.22"]
[Round "9"]
[White "Meskanen, Vesa"]
[Black "Rintakoski, Pentti"]
[Result "1-0"]
[ECO "D34"]
[WhiteElo "2066"]
[BlackElo "1797"]
[Annotator "NA"]
[PlyCount "79"]
[EventDate "2018.??.??"]
[EventCountry "POL"]
[SourceTitle "playchess.com"]
[Source "ChessBase"]
[SourceQuality "1"]
[WhiteTeam "Finland"]
[BlackTeam "Finland"]
[WhiteTeamCountry "FIN"]
[BlackTeamCountry "FIN"]
[TimeControl "40/5400+30:1800+30"]

1. d4 {[%emt 0:00:00]} e6 {[%emt 0:00:22]} 2. Nf3 {[%emt 0:01:33]} Nf6 {[%emt 0:00:25]} 3. g3 {[%emt 0:00:17]} c5 {[%emt 0:00:25]} 4. Bg2 {[%emt 0:00:13]} Nc6 {[%emt 0:00:18]} 5. O-O {[%emt 0:00:24]} d5 {[%emt 0:00:26]} 6. c4 {[%emt 0:01:34]} Be7 {[%emt 0:00:25]} 7. cxd5 {[%emt 0:00:24]} exd5 {[%emt 0:00:11]} 8. Nc3 {[%emt 0:01:06]} O-O {[%emt 0:00:26]} 9. Be3 {[%emt 0:01:34]} Ng4 {[%emt 0:00:53]} 10. Bf4 {[%emt 0:01:04]} a6 {[%emt 0:00:36]} 11. dxc5 {[%emt 0:02:42]} Be6 {[%emt 0:00:23]} 12. Na4 {[%emt 0:02:28]} Qa5 {[%emt 0:00:53]} 13. a3 {[%emt 0:04:40]} h6 {[%emt 0:02:30]} 14. b4 {[%emt 0:00:57]} Qb5 {[%emt 0:00:12]} 15. Nb6 {[%emt 0:01:34]} Rad8 {[%emt 0:00:54]} 16. Bc7 {[%emt 0:02:42]} Rde8 {[%emt 0:01:09]} 17. Rb1 {[%emt 0:02:28]} a5 {[%emt 0:01:13]} 18. a4 {[%emt 0:01:15]} Qa6 {[%emt 0:00:36]} 19. b5 {[%emt 0:00:24]} Qa7 {[%emt 0:00:13]} 20. bxc6 {[%emt 0:01:44]} bxc6 {[%emt 0:00:42]} 21. Bd6 {[%emt 0:08:02]} Bxd6 {[%emt 0:00:42]} 22. cxd6 {[%emt 0:00:09]} Rd8 {[%emt 0:00:13]} 23. Qd4 {[%emt 0:02:35]} Bf5 {[%emt 0:02:30]} 24. Rb2 {[%emt 0:02:46]} Nf6 {[%emt 0:00:19]} 25. Nxd5 {[%emt 0:00:51]} Qxd4 {[%emt 0:00:52]} 26. Ne7+ {[%emt 0:00:07]} Kh7 {[%emt 0:00:37]} 27. Nxd4 {[%emt 0:00:10]} Bg6 {[%emt 0:00:43]} 28. Nxg6 {[%emt 0:00:16]} fxg6 {[%emt 0:00:13]} 29. Nxc6 {[%emt 0:00:27]} Rxd6 {[%emt 0:00:23]} 30. Nxa5 {[%emt 0:00:28]} Rd4 {[%emt 0:00:26]} 31. Ra1 {[%emt 0:00:19]} Ng4 {[%emt 0:00:34]} 32. e3 {[%emt 0:00:51]} Rd7 {[%emt 0:00:54]} 33. Nc6 {[%emt 0:00:33]} Rdf7 {[%emt 0:00:30]} 34. Raa2 {[%emt 0:00:18]} h5 {[%emt 0:01:10]} 35. h3 {[%emt 0:00:21]} Nf6 {[%emt 0:00:12]} 36. a5 {[%emt 0:00:10]} Nd7 {[%emt 0:00:42]} 37. a6 {[%emt 0:00:25]} Nc5 {[%emt 0:00:13]} 38. a7 {[%emt 0:00:17]} Nd3 {[%emt 0:00:16]} 39. Rd2 {[%emt 0:01:11]} Nc1 {[%emt 0:00:15]} 40. a8=Q {[%emt 0:00:00]} 1-0